fUSD/lending_fUSD_20250208
["ID","MTS","AMOUNT","RATE_DAILY","PERIOD"]
[352247622,1739016646368,-500.0,0.0001026,2]
[352247624,1739016646377,-500.0,0.0001026,2]
[352247626,1739016646387,-500.0,0.0001026,2]
[352247628,1739016646396,-500.0,0.0001026,2]
[352247630,1739016646405,-500.0,0.0001026,2]
[352247632,1739016646415,-500.0,0.0001026,2]
[352247634,1739016646424,-500.0,0.0001026,2]
[352247636,1739016646434,-609.95,0.0001026,2]
[352247638,1739016646443,-1057.83,0.0001026,2]
[352247640,1739016646453,-500.0,0.0001026,2]
[352247642,1739016646463,-500.0,0.0001026,2]
[352247644,1739016646472,-500.0,0.0001026,2]
[352247646,1739016646481,-474.39164262,0.0001026,2]
[352247648,1739016646490,-500.0,0.0001026,2]
[352247650,1739016646500,-500.0,0.0001026,2]
[352247652,1739016646510,-512.17,0.0001026,2]
[352247654,1739016646519,-500.0,0.0001026,2]
[352247656,1739016646528,-2647.65,0.0001026,2]
[352247658,1739016646537,-500.0,0.0001026,2]
[352247660,1739016646546,-2248.66,0.0001026,2]
[352247662,1739016646556,-510.32,0.0001026,2]
[352247664,1739016646565,-732.34,0.0001026,2]
[352247666,1739016646575,-500.0,0.0001026,2]
[352247668,1739016646584,-500.0,0.0001026,2]
[352247670,1739016646593,-551.51,0.0001026,2]
[352247672,1739016646602,-1105.66,0.0001026,2]
[352247674,1739016646611,-500.0,0.0001026,2]
[352247676,1739016646621,-500.0,0.0001026,2]
[352247678,1739016646634,-500.0,0.0001026,2]
[352247680,1739016646644,-502.63489159,0.0001026,2]
[352247682,1739016646654,-751.01,0.0001026,2]
[352247684,1739016646663,-500.0,0.0001026,2]
[352247686,1739016646674,-218.09926006,0.0001026,2]
[352247688,1739016646684,-500.0,0.0001026,2]
[352247690,1739016646694,-500.0,0.0001026,2]
[352247692,1739016646703,-544.08,0.0001026,2]
[352247694,1739016646713,-1066.43,0.0001026,2]
[352247696,1739016646724,-500.0,0.0001026,2]
[352247698,1739016646734,-1519.45,0.0001026,2]
[352247700,1739016646743,-500.0,0.0001026,2]
[352247701,1739016646753,-500.0,0.0001026,2]
[352247703,1739016646762,-1474.09,0.0001026,2]
[352247705,1739016646772,-500.0,0.0001026,2]
[352247708,1739016646781,-552.34,0.0001026,2]
[352247709,1739016646791,-1624.49,0.0001026,2]
[352247712,1739016646800,-852.74,0.0001026,2]
[352247714,1739016646810,-1118.02,0.0001026,2]
[352247716,1739016646819,-561.31,0.0001026,2]
[352247717,1739016646829,-500.0,0.0001026,2]
[352247719,1739016646838,-500.0,0.0001026,2]
[352247721,1739016646847,-500.0,0.0001026,2]
[352247723,1739016646856,-500.0,0.0001026,2]
[352247725,1739016646865,-1284.92,0.0001026,2]
[352247727,1739016646875,-500.0,0.0001026,2]
[352247729,1739016646884,-619.81,0.0001026,2]
[352247731,1739016646894,-500.0,0.0001026,2]
[352247733,1739016646903,-500.0,0.0001026,2]
[352247735,1739016646913,-500.0,0.0001026,2]
[352247737,1739016646923,-928.27,0.0001026,2]
[352247739,1739016646932,-1439.99,0.0001026,2]
[352247741,1739016646942,-500.0,0.0001026,2]
[352247743,1739016646951,-500.0,0.0001026,2]
[352247745,1739016646960,-500.0,0.0001026,2]
[352247747,1739016646970,-745.06,0.0001026,2]
[352247749,1739016646979,-1217.49,0.0001026,2]
[352247751,1739016646988,-765.27,0.0001026,2]
[352247753,1739016646998,-590.8,0.0001026,2]
[352247755,1739016647007,-500.0,0.0001026,2]
[352247757,1739016647017,-500.0,0.0001026,2]
[352247759,1739016647026,-508.28,0.0001026,2]
[352247761,1739016647036,-644.75,0.0001026,2]
[352247763,1739016647045,-500.0,0.0001026,2]
[352247765,1739016647054,-1307.72,0.0001026,2]
[352247767,1739016647063,-919.85,0.0001026,2]
[352247769,1739016647072,-603.56111132,0.0001026,2]
[352247771,1739016647081,-661.48,0.0001026,2]
[352247773,1739016647090,-812.62,0.0001026,2]
[352247774,1739016647099,-576.6,0.0001026,2]
[352247776,1739016647109,-500.0,0.0001026,2]
[352247778,1739016647119,-500.0,0.0001026,2]
[352247780,1739016647128,-3629.14,0.0001026,2]
[352247782,1739016647137,-848.22,0.0001026,2]
[352247784,1739016647147,-794.68,0.0001026,2]
[352247786,1739016647156,-890.34,0.0001026,2]
[352247788,1739016647166,-1094.34,0.0001026,2]
[352247790,1739016647177,-2156.61,0.0001026,2]
[352247792,1739016647187,-500.0,0.0001026,2]
[352247794,1739016647197,-592.9,0.0001026,2]
[352247796,1739016647206,-500.0,0.0001026,2]
[352247798,1739016647216,-1316.74,0.0001026,2]
[352247800,1739016647226,-508.01935906,0.0001026,2]
[352247802,1739016647235,-500.0,0.0001026,2]
[352247804,1739016647244,-2965.59,0.0001026,2]
[352247806,1739016647255,-500.0,0.0001026,2]
[352247808,1739016647266,-500.0,0.0001026,2]
[352247810,1739016647276,-500.0,0.0001026,2]
[352247813,1739016647286,-2729.76,0.0001026,2]
[352247815,1739016647296,-1273.81,0.0001026,2]
[352247817,1739016647306,-500.0,0.0001026,2]
[352247819,1739016647317,-500.0,0.0001026,2]
[352247820,1739016647327,-2243.36,0.0001026,2]
[352247822,1739016647337,-500.0,0.0001026,2]
[352247825,1739016647347,-500.0,0.0001026,2]
[352247826,1739016647357,-1994.8,0.0001026,2]
[352247829,1739016647367,-500.0,0.0001026,2]
[352247831,1739016647377,-3608.88,0.0001026,2]
[352247833,1739016647387,-500.0,0.0001026,2]
[352247835,1739016647397,-500.0,0.0001026,2]
[352247837,1739016647406,-530.22,0.0001026,2]
[352247839,1739016647415,-500.0,0.0001026,2]
[352247841,1739016647425,-500.0,0.0001026,2]
[352247843,1739016647436,-902.09,0.0001026,2]
[352247845,1739016647445,-742.68,0.0001026,2]
[352247847,1739016647454,-500.0,0.0001026,2]
[352247849,1739016647464,-524.17,0.0001026,2]
[352247851,1739016647474,-500.0,0.0001026,2]
[352247853,1739016647485,-500.0,0.0001026,2]
[352247855,1739016647494,-500.0,0.0001026,2]
[352247857,1739016647504,-557.0,0.0001026,2]
[352247859,1739016647514,-304.34766317,0.0001026,2]
[352247861,1739016647523,-500.0,0.0001026,2]
[352247863,1739016647533,-1082.66,0.0001026,2]
[352247864,1739016647543,-500.0,0.0001026,2]
[352247867,1739016647553,-2180.53,0.0001026,2]
[352247869,1739016647563,-500.0,0.0001026,2]
[352247870,1739016647573,-500.0,0.0001026,2]
[352247872,1739016647583,-504.60676551,0.0001026,2]
[352247875,1739016647593,-670.71,0.0001026,2]
[352247876,1739016647602,-1715.72,0.0001026,2]
[352247878,1739016647611,-520.83,0.0001026,2]
[352247880,1739016647621,-3699.44,0.0001026,2]
[352247882,1739016647631,-500.0,0.0001026,2]
[352247884,1739016647646,-524.48,0.0001026,2]
[352247886,1739016647656,-2751.18,0.0001026,2]
[352247888,1739016647666,-500.0,0.0001026,2]
[352247890,1739016647676,-500.0,0.0001026,2]
[352247892,1739016647687,-500.0,0.0001026,2]
[352247894,1739016647696,-1146.55,0.0001026,2]
[352247896,1739016647707,-592.79,0.0001026,2]
[352247898,1739016647718,-931.63,0.0001026,2]
[352247900,1739016647729,-1525.87,0.0001026,2]
[352247902,1739016647739,-2618.94,0.0001026,2]
[352247904,1739016647751,-669.42,0.0001026,2]
[352247906,1739016647762,-506.01985491,0.0001026,2]
[352247908,1739016647772,-905.09,0.0001026,2]
[352247910,1739016647783,-500.0,0.0001026,2]
[352247912,1739016647793,-500.0,0.0001026,2]
[352247915,1739016647803,-616.62660548,0.00010261,2]
[352247917,1739016647813,-1202.49,0.00010261,2]
[352247919,1739016647824,-651.3,0.00010261,2]
[352247921,1739016647834,-500.0,0.00010261,2]
[352247923,1739016647843,-556.5,0.00010261,2]
[352247925,1739016647853,-1262.24,0.00010261,2]
[352247927,1739016647863,-523.68,0.00010261,2]
[352247929,1739016647873,-645.85,0.00010261,2]
[352247931,1739016647883,-1255.57,0.00010261,2]
[352247933,1739016647892,-500.0,0.00010261,2]
[352247935,1739016647902,-1271.04,0.00010261,2]
[352247937,1739016647912,-2817.48,0.00010261,2]
[352247939,1739016647923,-1435.33,0.00010261,2]
[352247941,1739016647933,-678.63,0.00010261,2]
[352247943,1739016647943,-580.73,0.00010261,2]
[352247945,1739016647954,-619.8,0.00010261,2]
[352247947,1739016647964,-500.0,0.00010261,2]
[352247949,1739016647973,-1735.93,0.00010261,2]
[352247951,1739016647983,-617.19,0.00010261,2]
[352247953,1739016647995,-1402.8,0.00010261,2]
[352247955,1739016648006,-500.0,0.00010261,2]
[352247957,1739016648016,-1356.77,0.00010261,2]
[352247959,1739016648028,-552.02,0.00010261,2]
[352247961,1739016648040,-639.24,0.00010261,2]
[352247963,1739016648050,-500.0,0.00010261,2]
[352247965,1739016648062,-1090.42,0.00010261,2]
[352247968,1739016648073,-500.0,0.00010261,2]
[352247969,1739016648083,-500.0,0.00010261,2]
[352247971,1739016648095,-520.86,0.00010261,2]
[352247973,1739016648105,-543.67,0.00010261,2]
[352247975,1739016648115,-683.58,0.00010261,2]
[352247977,1739016648125,-763.82,0.00010261,2]
[352247979,1739016648135,-500.0,0.00010261,2]
[352247981,1739016648146,-500.0,0.00010261,2]
[352247984,1739016648158,-500.0,0.00010273,2]
[352247985,1739016648168,-163.676772,0.00010298,2]
[352247987,1739016648178,-532.0,0.000103,5]
[352247990,1739016648190,-163.67677193,0.00010384,2]
[352247992,1739016648201,-500.0,0.00010396,2]
[352247994,1739016648213,-2684.42,0.00010396,2]
[352247995,1739016648225,-933.62,0.00010396,2]
[352247996,1739016648237,-1024.41,0.00010396,2]
[352247997,1739016648250,-2006.719722,0.00010396,2]
[352247998,1739016648260,-1000.88,0.00010396,2]
[352247999,1739016648273,-1598.6,0.00010396,2]
[352248000,1739016648284,-14404.81,0.00010396,2]
[352248001,1739016648296,-1873.95,0.00010396,2]
[352248002,1739016648307,-152.584381,0.00010396,2]
[352248003,1739016648318,-887.37,0.00010396,2]
[352248004,1739016648329,-1877.57,0.00010396,2]
[352248005,1739016648341,-500.0,0.00010396,2]
[352248007,1739016648353,-680.39,0.00010396,2]
[352248009,1739016648365,-2425.45,0.00010396,2]
[352248011,1739016648377,-1162.12,0.00010396,2]
[352248013,1739016648389,-500.0,0.00010396,2]
[352248015,1739016648400,-1515.42,0.00010396,2]
[352248017,1739016648410,-909.64,0.00010396,2]
[352248019,1739016648421,-2929.65,0.00010396,2]
[352248021,1739016648431,-1376.49,0.00010396,2]
[352248023,1739016648441,-1924.921431,0.00010396,2]
[352248025,1739016648451,-8797.64,0.00010396,2]
[352248027,1739016648461,-514.57,0.00010396,2]
[352248029,1739016648471,-500.0,0.00010396,2]
[352248031,1739016648482,-660.5,0.00010396,2]
[352248033,1739016648491,-1132.41,0.00010396,2]
[352248035,1739016648505,-1210.74,0.00010396,2]
[352248037,1739016648516,-2167.29,0.00010396,2]
[352248039,1739016648527,-997.08,0.00010396,2]
[352248041,1739016648537,-1956.24,0.00010396,2]
[352248043,1739016648546,-889.21,0.00010396,2]
[352248045,1739016648556,-1483.87,0.00010396,2]
[352248047,1739016648566,-1005.33,0.00010396,2]
[352248049,1739016648576,-1523.46,0.00010396,2]
[352248051,1739016648586,-500.0,0.00010396,2]
[352248053,1739016648596,-2972.62,0.00010396,2]
[352248055,1739016648606,-3014.46,0.00010396,2]
[352248057,1739016648617,-1879.88,0.00010396,2]
[352248059,1739016648627,-1805.48,0.00010396,2]
[352248061,1739016648644,-1675.03,0.00010396,2]
[352248063,1739016648654,-1525.04,0.00010396,2]
[352248065,1739016648664,-1481.76,0.00010396,2]
[352248067,1739016648675,-1550.41,0.00010396,2]
[352248069,1739016648686,-500.0,0.00010396,2]
[352248071,1739016648696,-1336.26,0.00010396,2]
[352248073,1739016648707,-1170.33,0.00010396,2]
[352248076,1739016648720,-6263.57,0.00010396,2]
[352248078,1739016648732,-722.46,0.00010396,2]
[352248080,1739016648743,-2548.9,0.00010396,2]
[352248082,1739016648757,-1279.94,0.00010396,2]
[352248084,1739016648767,-1763.51,0.00010396,2]
[352248086,1739016648778,-3187.35,0.00010396,2]
[352248088,1739016648789,-2428.97,0.00010396,2]
[352248090,1739016648799,-1433.03,0.00010396,2]
[352248092,1739016648810,-2509.09,0.00010396,2]
[352248094,1739016648821,-500.0,0.00010396,2]
[352248096,1739016648834,-1983.83,0.00010396,2]
[352248098,1739016648845,-1130.52,0.00010396,2]
[352248101,1739016648857,-938.92,0.00010396,2]
[352248103,1739016648868,-2847.66,0.00010396,2]
[352248105,1739016648880,-848.72,0.00010396,2]
[352248107,1739016648891,-981.5,0.00010396,2]
[352248109,1739016648903,-4198.29,0.00010396,2]
[352248111,1739016648914,-2236.4,0.00010396,2]
[352248113,1739016648925,-591.38,0.00010396,2]
[352248115,1739016648936,-500.0,0.00010396,2]
[352248117,1739016648946,-2177.48,0.00010396,2]
[352248119,1739016648957,-789.78,0.00010396,2]
[352248121,1739016648968,-2846.29,0.00010396,2]
[352248123,1739016648979,-2497.72,0.00010396,2]
[352248125,1739016648990,-3935.72,0.00010396,2]
[352248127,1739016649004,-1045.52,0.00010396,2]
[352248129,1739016649015,-2921.31,0.00010396,2]
[352248131,1739016649026,-1177.12,0.00010396,2]
[352248133,1739016649037,-685.44,0.00010396,2]
[352248135,1739016649048,-2601.32,0.00010396,2]
[352248137,1739016649063,-2586.35,0.00010396,2]
[352248139,1739016649075,-2525.4,0.00010396,2]
[352248141,1739016649087,-574.27,0.00010396,2]
[352248144,1739016649098,-1201.45,0.00010396,2]
[352248145,1739016649109,-500.0,0.00010396,2]
[352248148,1739016649120,-694.71,0.00010396,2]
[352248150,1739016649131,-758.46,0.00010396,2]
[352248152,1739016649141,-2455.19,0.00010396,2]
[352248154,1739016649150,-2656.07,0.00010396,2]
[352248156,1739016649161,-3064.19,0.00010396,2]
[352248158,1739016649171,-972.81,0.00010396,2]
[352248165,1739016649234,-500.0,0.00010396,2]
[352248167,1739016649247,-500.0,0.00010397,2]
[352248169,1739016649257,-500.0,0.00010397,2]
[352248171,1739016649268,-514.50694143,0.00010397,2]
[352248173,1739016649278,-500.0,0.00010397,2]
[352248175,1739016649288,-500.0,0.00010397,2]
[352248177,1739016649298,-500.0,0.00010397,2]
[352248179,1739016649308,-500.0,0.00010397,2]
[352248181,1739016649318,-500.0,0.00010397,2]
[352248183,1739016649328,-500.0,0.00010397,2]
[352248185,1739016649339,-172.56545896,0.00010397,2]
[352248187,1739016649349,-500.0,0.00010397,2]
[352248189,1739016649359,-500.0,0.00010397,2]
[352248191,1739016649369,-500.0,0.00010397,2]
[352248193,1739016649379,-500.0,0.00010397,2]
[352248195,1739016649390,-500.0,0.00010397,2]
[352248197,1739016649399,-500.0,0.00010397,2]
[352248199,1739016649410,-591.73,0.00010397,2]
[352248201,1739016649419,-500.0,0.00010397,2]
[352248203,1739016649428,-611.04897106,0.00010397,2]
[352248205,1739016649437,-500.0,0.00010397,2]
[352248207,1739016649446,-511.89184812,0.00010397,2]
[352248209,1739016649456,-690.29,0.00010397,2]
[352248211,1739016649466,-500.0,0.00010397,2]
[352248213,1739016649475,-500.0,0.00010397,2]
[352248215,1739016649485,-500.0,0.00010397,2]
[352248217,1739016649496,-538.0,0.00010397,2]
[352248219,1739016649506,-500.0,0.00010397,2]
[352248221,1739016649515,-500.0,0.00010397,2]
[352248223,1739016649525,-500.0,0.00010397,2]
[352248225,1739016649534,-500.0,0.00010397,2]
[352248227,1739016649544,-774.67,0.00010397,2]
[352248229,1739016649554,-506.31538287,0.00010397,2]
[352248231,1739016649564,-500.0,0.00010397,2]
[352248233,1739016649573,-500.0,0.00010397,2]
[352248235,1739016649583,-500.0,0.00010397,2]
[352248237,1739016649593,-500.0,0.00010397,2]
[352248239,1739016649602,-500.0,0.00010397,2]
[352248241,1739016649612,-500.0,0.00010397,2]
[352248243,1739016649622,-500.0,0.00010397,2]
[352248245,1739016649632,-500.0,0.00010397,2]
[352248247,1739016649645,-500.0,0.00010397,2]
[352248250,1739016649655,-500.0,0.00010397,2]
[352248252,1739016649665,-500.0,0.00010397,2]
[352248253,1739016649675,-1124.54,0.00010397,2]
[352248255,1739016649686,-500.0,0.00010397,2]
[352248257,1739016649696,-500.0,0.00010397,2]
[352248259,1739016649706,-500.0,0.00010397,2]
[352248261,1739016649716,-578.02,0.00010397,2]
[352248264,1739016649726,-500.0,0.00010397,2]
[352248266,1739016649736,-500.0,0.00010397,2]
[352248267,1739016649745,-500.0,0.00010397,2]
[352248270,1739016649756,-500.0,0.00010397,2]
[352248272,1739016649766,-500.0,0.00010397,2]
[352248274,1739016649775,-731.4,0.00010397,2]
[352248276,1739016649784,-1169.39,0.00010397,2]
[352248278,1739016649793,-500.0,0.00010397,2]
[352248280,1739016649803,-500.0,0.00010397,2]
[352248282,1739016649813,-582.22,0.00010397,2]
[352248284,1739016649822,-500.0,0.00010397,2]
[352248286,1739016649831,-739.49,0.00010397,2]
[352248288,1739016649841,-500.0,0.00010397,2]
[352248289,1739016649850,-500.0,0.00010397,2]
[352248291,1739016649859,-904.49,0.00010397,2]
[352248293,1739016649869,-500.0,0.00010397,2]
[352248295,1739016649878,-500.0,0.00010397,2]
[352248297,1739016649889,-500.0,0.00010397,2]
[352248299,1739016649898,-1674.01,0.00010397,2]
[352248302,1739016649908,-500.0,0.00010397,2]
[352248304,1739016649918,-825.85,0.00010397,2]
[352248305,1739016649927,-500.0,0.00010397,2]
[352248308,1739016649937,-500.0,0.00010397,2]
[352248310,1739016649946,-614.84712195,0.00010397,2]
[352248312,1739016649956,-500.0,0.00010397,2]
[352248314,1739016649965,-500.0,0.00010397,2]
[352248315,1739016649974,-500.0,0.00010397,2]
[352248317,1739016649983,-252.94378991,0.00010397,2]
[352248319,1739016649992,-1609.57,0.00010397,2]
[352248321,1739016650003,-531.32,0.00010397,2]
[352248324,1739016650012,-500.0,0.00010397,2]
[352248326,1739016650021,-500.0,0.00010397,2]
[352248328,1739016650031,-755.09,0.00010397,2]
[352248330,1739016650040,-500.0,0.00010397,2]
[352248331,1739016650049,-500.0,0.00010397,2]
[352248333,1739016650058,-755.03,0.00010397,2]
[352248335,1739016650067,-500.0,0.00010397,2]
[352248337,1739016650077,-500.0,0.00010397,2]
[352248340,1739016650087,-573.72,0.00010397,2]
[352248368,1739016650360,-1197.56,0.00010397,2]
[352248371,1739016650376,-500.0,0.00010397,2]
[352248373,1739016650387,-500.0,0.00010397,2]
[352248375,1739016650397,-500.0,0.00010397,2]
[352248377,1739016650406,-500.0,0.00010397,2]
[352248379,1739016650415,-500.0,0.00010397,2]
[352248381,1739016650425,-500.0,0.00010397,2]
[352248383,1739016650435,-771.54,0.00010397,2]
[352248385,1739016650443,-558.54,0.00010397,2]
[352248387,1739016650452,-231.22570037,0.00010397,2]
[352248389,1739016650462,-500.0,0.00010397,2]
[352248391,1739016650471,-500.0,0.00010397,2]
[352248393,1739016650480,-500.0,0.00010397,2]
[352248395,1739016650490,-525.06,0.00010397,2]
[352248397,1739016650499,-500.0,0.00010397,2]
[352248399,1739016650510,-520.49,0.00010397,2]
[352248401,1739016650520,-500.0,0.00010397,2]
[352248403,1739016650531,-509.49,0.00010397,2]
[352248405,1739016650540,-500.0,0.00010397,2]
[352248407,1739016650549,-500.0,0.00010397,2]
[352248409,1739016650558,-1295.12,0.00010397,2]
[352248411,1739016650568,-588.16726082,0.00010397,2]
[352248413,1739016650577,-500.0,0.00010397,2]
[352248415,1739016650586,-500.0,0.00010397,2]
[352248417,1739016650595,-558.23,0.00010397,2]
[352248419,1739016650604,-603.54,0.00010397,2]
[352248421,1739016650614,-500.0,0.00010397,2]
[352248423,1739016650623,-500.0,0.00010397,2]
[352248425,1739016650634,-500.0,0.00010397,2]
[352248427,1739016650646,-500.0,0.00010397,2]
[352248429,1739016650656,-536.23,0.00010397,2]
[352248431,1739016650665,-500.0,0.00010397,2]
[352248433,1739016650675,-500.0,0.00010397,2]
[352248435,1739016650686,-500.0,0.00010397,2]
[352248437,1739016650695,-500.0,0.00010397,2]
[352248439,1739016650705,-500.0,0.00010397,2]
[352248441,1739016650716,-500.0,0.00010397,2]
[352248443,1739016650727,-500.0,0.00010397,2]
[352248445,1739016650736,-530.55,0.00010397,2]
[352248447,1739016650745,-500.0,0.00010397,2]
[352248449,1739016650757,-500.0,0.00010397,2]
[352248451,1739016650766,-1143.44,0.00010397,2]
[352248453,1739016650775,-500.0,0.00010397,2]
[352248455,1739016650785,-500.0,0.00010397,2]
[352248457,1739016650794,-500.0,0.00010397,2]
[352248459,1739016650804,-500.0,0.00010397,2]
[352248461,1739016650814,-500.0,0.00010397,2]
[352248463,1739016650824,-500.0,0.00010397,2]
[352248465,1739016650833,-1033.59,0.00010397,2]
[352248467,1739016650843,-500.0,0.00010397,2]
[352248469,1739016650852,-500.0,0.00010397,2]
[352248471,1739016650862,-192.30392246,0.00010397,2]
[352248473,1739016650872,-500.0,0.00010397,2]
[352248475,1739016650882,-500.0,0.00010397,2]
[352248477,1739016650892,-1257.01,0.00010397,2]
[352248479,1739016650901,-876.98,0.00010397,2]
[352248481,1739016650911,-500.0,0.00010397,2]
[352248483,1739016650920,-501.05,0.00010397,2]
[352248485,1739016650930,-500.0,0.00010397,2]
[352248486,1739016650939,-452.55458893,0.00010397,2]
[352248487,1739016650948,-500.0,0.00010397,2]
[352248488,1739016650958,-530.26,0.00010397,2]
[352248489,1739016650967,-500.0,0.00010397,2]
[352248490,1739016650977,-500.0,0.00010397,2]
[352248491,1739016650987,-500.0,0.00010397,2]
[352248492,1739016650996,-500.0,0.00010397,2]
[352248493,1739016651008,-500.0,0.00010397,2]
[352248494,1739016651017,-1651.88,0.00010397,2]
[352248495,1739016651027,-500.0,0.00010397,2]
[352248496,1739016651036,-1148.94,0.00010397,2]
[352248497,1739016651045,-500.0,0.00010397,2]
[352248498,1739016651055,-500.0,0.00010397,2]
[352248499,1739016651065,-575.47,0.00010397,2]
[352248500,1739016651074,-500.0,0.00010397,2]
[352248501,1739016651083,-500.0,0.00010397,2]
[352248502,1739016651092,-500.0,0.00010397,2]
[352248503,1739016651102,-1025.22,0.00010397,2]
[352248504,1739016651111,-500.0,0.00010397,2]
[352248505,1739016651122,-500.0,0.00010397,2]
[352248506,1739016651131,-915.76,0.00010397,2]
[352248507,1739016651141,-964.7,0.00010397,2]
[352248508,1739016651151,-500.0,0.00010397,2]
[352248509,1739016651160,-412.86889443,0.00010397,2]
[352248510,1739016651170,-698.32,0.00010397,2]
[352248511,1739016651179,-500.0,0.00010397,2]
[352248512,1739016651189,-500.0,0.00010397,2]
[352248513,1739016651198,-1390.15,0.00010397,2]
[352248514,1739016651208,-500.0,0.00010397,2]
[352248515,1739016651218,-1649.62,0.00010397,2]
[352248516,1739016651227,-500.0,0.00010397,2]
[352248517,1739016651237,-500.0,0.00010397,2]
[352248518,1739016651246,-500.0,0.00010397,2]
[352248519,1739016651257,-500.0,0.00010397,2]
[352248520,1739016651267,-604.58861889,0.00010397,2]
[352248521,1739016651276,-500.0,0.00010397,2]
[352248522,1739016651286,-526.92,0.00010397,2]
[352248524,1739016651295,-592.25,0.00010397,2]
[352248525,1739016651305,-1935.59,0.00010397,2]
[352248527,1739016651315,-500.0,0.00010397,2]
[352248529,1739016651326,-910.81,0.00010397,2]
[352248531,1739016651335,-500.0,0.00010397,2]
[352248533,1739016651345,-650.96,0.00010397,2]
[352248535,1739016651354,-500.0,0.00010397,2]
[352248537,1739016651363,-505.74845872,0.00010397,2]
[352248539,1739016651372,-534.04,0.00010397,2]
[352248541,1739016651382,-500.0,0.00010397,2]
[352248543,1739016651391,-500.0,0.00010397,2]
[352248545,1739016651400,-1191.28,0.00010397,2]
[352248547,1739016651410,-256.18956834,0.00010397,2]
[352248549,1739016651419,-500.0,0.00010397,2]
[352248551,1739016651429,-544.7,0.00010397,2]
[352248553,1739016651438,-500.0,0.00010397,2]
[352248555,1739016651447,-209.24087163,0.00010397,2]
[352248557,1739016651457,-500.0,0.00010397,2]
[352248559,1739016651467,-500.0,0.00010397,2]
[352248561,1739016651476,-724.27,0.00010397,2]
[352248563,1739016651486,-500.0,0.00010397,2]
[352248565,1739016651495,-663.16,0.00010397,2]
[352248567,1739016651506,-500.0,0.00010397,2]
[352248569,1739016651515,-594.76,0.00010397,2]
[352248571,1739016651525,-312.49026778,0.00010397,2]
[352248573,1739016651535,-500.0,0.00010397,2]
[352248575,1739016651545,-448.11,0.00010397,2]
[352248577,1739016651554,-384.07164891,0.00010397,2]
[352248579,1739016651564,-1403.23,0.00010397,2]
[352248581,1739016651573,-500.0,0.00010397,2]
[352248583,1739016651582,-253.57638474,0.00010397,2]
[352248585,1739016651591,-500.0,0.00010397,2]
[352248587,1739016651600,-985.78,0.00010397,2]
[352248589,1739016651609,-500.0,0.00010397,2]
[352248591,1739016651619,-938.03,0.00010397,2]
[352248593,1739016651629,-500.0,0.00010397,2]
[352248595,1739016651640,-692.14,0.00010397,2]
[352248597,1739016651649,-500.0,0.00010397,2]
[352248599,1739016651658,-500.0,0.00010397,2]
[352248601,1739016651667,-500.0,0.00010397,2]
[352248602,1739016651676,-500.0,0.00010397,2]
[352248604,1739016651686,-500.0,0.00010397,2]
[352248606,1739016651696,-500.0,0.00010397,2]